fUST/lending_fUST_20251026
["ID","MTS","AMOUNT","RATE_DAILY","PERIOD"]
[392397169,1761429106224,-404.18930064,0.00015378,2]
[392397170,1761429106413,-808.37860128,0.00015378,2]
[392397171,1761429106649,-1616.75720256,0.00015378,2]
[392397172,1761429106722,-3233.51440512,0.00015378,2]
[392397173,1761429107103,-3532.98118976,0.00015378,2]
[392397174,1761429112977,-300.01,0.00015378,2]
[392397175,1761429113326,-600.02,0.00015378,2]
[392397176,1761429113658,-1200.04,0.00015378,2]
[392397177,1761429113932,-2400.08,0.00015378,2]
[392397178,1761429118879,-303.45128676,0.00015378,2]
[392397179,1761429120464,-4896.39871324,0.00015378,2]
[392397181,1761429133332,-300.0,0.00015532,2]
[392397182,1761429133933,300.0,0.000154,2]
[392397183,1761429149593,-7361.96425529,0.00015533,2]
[392397184,1761429149933,-362.1704509,0.00015533,2]
[392397185,1761429149988,-9275.6690982,0.00015533,2]
[392397186,1761429163770,152.829773,0.0001907,7]
[392397187,1761429164032,152.829773,0.00019064,7]
[392397188,1761429164345,5000.0,0.00015533,2]
[392397189,1761429166788,-1200.0,0.00015689,2]
[392397190,1761429172060,5000.0,0.00015689,2]
[392397191,1761429177753,350.1,0.0001568,3]
[392397192,1761429182162,-9649.92,0.0001569,2]
[392397193,1761429182363,-10000.01,0.0001569,2]
[392397194,1761429182555,-10000.01,0.0001569,2]
[392397195,1761429182721,300.0,0.00015689,2]
[392397196,1761429182787,-9700.01,0.0001569,2]
[392397197,1761429182954,-10000.01,0.0001569,2]
[392397198,1761429183377,-10000.01,0.0001569,2]
[392397199,1761429183419,-10000.01,0.0001569,2]
[392397200,1761429183808,-10000.01,0.0001569,2]
[392397201,1761429183942,-10000.01,0.0001569,2]
[392397202,1761429203090,-5000.0,0.00015532,2]
[392397203,1761429203335,0.01,0.00015377,2]
[392397204,1761429203383,4999.99,0.00015377,2]
[392397205,1761429213666,153.134479,0.0001907,7]
[392397206,1761429214384,153.134479,0.00019064,7]
[392397207,1761429214675,153.134479,0.00019058,7]
[392397208,1761429218390,-5000.0,0.00015689,2]
[392397209,1761429218620,0.01,0.00015532,2]
[392397210,1761429218664,4999.99,0.00015532,2]
[392397211,1761429223808,-160.03216134,0.00015689,2]
[392397212,1761429224032,152.829773,0.00018666,7]
[392397213,1761429224389,152.829773,0.0001829,7]
[392397214,1761429226394,3254.48237286,0.00015689,2]
[392397215,1761429227057,-339.96783866,0.00015689,2]
[392397216,1761429227080,-42.44564797,0.00015689,2]
[392397217,1761429233671,-297.14036833,0.00015689,2]
[392397218,1761429233741,-341.94200839,0.00015689,2]
[392397219,1761429233803,-500.0,0.00015689,2]
[392397220,1761429233857,-500.0,0.00015689,2]
[392397221,1761429233923,-500.0,0.00015689,2]
[392397222,1761429233988,-500.0,0.00015689,2]
[392397223,1761429234045,-500.0,0.00015689,2]
[392397224,1761429234103,-500.0,0.00015689,2]
[392397225,1761429234160,-154.17407167,0.00015689,2]
[392397226,1761429234212,-500.0,0.00015689,2]
[392397227,1761429234267,-500.0,0.00015689,2]
[392397228,1761429234726,-500.0,0.00015689,2]
[392397229,1761429234784,-500.0,0.00015689,2]
[392397230,1761429234837,-500.0,0.00015689,2]
[392397231,1761429234893,-500.0,0.00015689,2]
[392397232,1761429234951,-500.0,0.00015689,2]
[392397233,1761429235005,-500.0,0.00015689,2]
[392397234,1761429235057,-500.0,0.00015689,2]
[392397235,1761429235115,-500.0,0.00015689,2]
[392397236,1761429235179,-500.0,0.00015689,2]
[392397237,1761429235233,-500.0,0.00015689,2]
[392397238,1761429235453,-500.0,0.00015689,2]
[392397239,1761429235509,-500.0,0.00015689,2]
[392397240,1761429235568,-500.0,0.00015689,2]
[392397241,1761429235620,-488.49558271,0.00015689,2]
[392397242,1761429235671,-500.0,0.00015689,2]
[392397243,1761429235724,-500.0,0.00015689,2]
[392397244,1761429235778,-357.33743326,0.00015689,2]
[392397245,1761429236074,-500.0,0.00015689,2]
[392397246,1761429236133,-500.0,0.00015689,2]
[392397247,1761429236192,-500.0,0.00015689,2]
[392397248,1761429236516,-500.0,0.00015689,2]
[392397249,1761429236568,-500.0,0.00015689,2]
[392397250,1761429236618,-500.0,0.00015689,2]
[392397251,1761429236668,-416.40660305,0.00015689,2]
[392397252,1761429236718,-500.0,0.00015689,2]
[392397253,1761429236771,-361.18477098,0.00015689,2]
[392397254,1761429236826,-500.0,0.00015689,2]
[392397255,1761429236879,-500.0,0.00015689,2]
[392397256,1761429236938,-500.0,0.00015689,2]
[392397257,1761429236998,-500.0,0.00015689,2]
[392397258,1761429237236,-500.0,0.00015689,2]
[392397259,1761429237294,-500.0,0.00015689,2]
[392397260,1761429237355,-500.0,0.00015689,2]
[392397261,1761429237416,-500.0,0.00015689,2]
[392397262,1761429237473,-500.0,0.00015689,2]
[392397263,1761429237528,-500.0,0.00015689,2]
[392397264,1761429237584,-500.0,0.00015689,2]
[392397265,1761429237637,-500.0,0.00015689,2]
[392397266,1761429237690,-500.0,0.00015689,2]
[392397267,1761429237742,-500.0,0.00015689,2]
[392397268,1761429237821,-500.0,0.00015689,2]
[392397269,1761429237881,-500.0,0.00015689,2]
[392397270,1761429237939,-500.0,0.00015689,2]
[392397271,1761429237996,-500.0,0.00015689,2]
[392397272,1761429238050,-500.0,0.00015689,2]
[392397273,1761429238104,-500.0,0.00015689,2]
[392397274,1761429238160,-500.0,0.00015689,2]
[392397275,1761429238223,-500.0,0.00015689,2]
[392397276,1761429238277,-500.0,0.00015689,2]
[392397277,1761429238330,-500.0,0.00015689,2]
[392397278,1761429238514,-500.0,0.00015689,2]
[392397279,1761429238570,-500.0,0.00015689,2]
[392397280,1761429238627,-500.0,0.00015689,2]
[392397281,1761429238683,-355.99585621,0.00015689,2]
[392397282,1761429238738,-500.0,0.00015689,2]
[392397283,1761429238791,-500.0,0.00015689,2]
[392397284,1761429238846,-500.0,0.00015689,2]
[392397285,1761429238902,-500.0,0.00015689,2]
[392397286,1761429238959,-500.0,0.00015689,2]
[392397287,1761429239016,-500.0,0.00015689,2]
[392397288,1761429239191,5000.0,0.00015689,2]
[392397289,1761429239398,-500.0,0.00015689,2]
[392397290,1761429239451,-500.0,0.00015689,2]
[392397291,1761429239503,-500.0,0.00015689,2]
[392397292,1761429239554,-500.0,0.00015689,2]
[392397293,1761429239609,-577.0077153,0.00015689,2]
[392397294,1761429243956,4845.9945694,0.00015689,2]
[392397295,1761429244007,10000.01,0.00015689,2]
[392397296,1761429244056,9543.1165557,0.00015689,2]
[392397297,1761429244125,300.0,0.00015689,2]
[392397298,1761429244284,156.8934443,0.00015689,2]
[392397299,1761429244329,4843.1065557,0.00015689,2]
[392397300,1761429252675,-3511.16311284,0.0001569,2]
[392397301,1761429253268,-10000.01,0.0001569,2]
[392397302,1761429253440,-10000.01,0.0001569,2]
[392397303,1761429258104,-10000.01,0.0001569,2]
[392397304,1761429258358,-10000.01,0.00015533,2]
[392397305,1761429258565,-4071.02120606,0.00015533,2]
[392397306,1761429258615,-1857.96758788,0.00015533,2]
[392397307,1761429258760,-10000.01,0.0001569,2]
[392397308,1761429258981,-10000.01,0.0001569,2]
[392397309,1761429259272,-10000.01,0.0001569,2]
[392397310,1761429259418,-10000.01,0.0001569,2]
[392397311,1761429259558,156.0,8.3e-07,2]
[392397312,1761429259620,-10000.01,0.0001569,2]
[392397313,1761429260589,156.0,8.3e-07,2]
[392397314,1761429261628,156.0,8.3e-07,2]
[392397315,1761429263354,156.0,8.3e-07,2]
[392397316,1761429263988,-10000.01,0.0001569,2]
[392397317,1761429264189,-10000.01,0.0001569,2]
[392397318,1761429264470,156.0,8.3e-07,2]
[392397319,1761429265748,156.0,8.3e-07,2]
[392397320,1761429269952,-10000.01,0.00015533,2]
[392397321,1761429270698,-542.43564797,0.00015533,2]
[392397322,1761429270785,-8915.13870406,0.0001569,2]
[392397323,1761429270875,-10000.01,0.0001569,2]
[392397324,1761429271101,-10000.01,0.0001569,2]
[392397325,1761429271285,-10000.01,0.0001569,2]
[392397326,1761429271449,-10000.01,0.0001569,2]
[392397327,1761429271680,-10000.01,0.0001569,2]
[392397328,1761429271887,-10000.01,0.0001569,2]
[392397329,1761429276377,-10000.01,0.0001569,2]
[392397330,1761429276702,-10000.01,0.0001569,2]
[392397331,1761429282173,-196.0,0.0001511,2]
[392397332,1761429282231,-196.0,0.0001514,2]
[392397333,1761429282288,-196.0,0.0001517,2]
[392397334,1761429282343,-196.0,0.00015201,2]
[392397335,1761429282396,-196.0,0.00015231,2]
[392397336,1761429282446,-196.0,0.00015261,2]
[392397337,1761429282503,-196.0,0.00015291,2]
[392397338,1761429282557,-196.0,0.00015321,2]
[392397339,1761429282607,-196.0,0.00015352,2]
[392397340,1761429282657,-196.0,0.00015382,2]
[392397341,1761429282708,-196.0,0.00015412,2]
[392397342,1761429282758,-196.0,0.00015442,2]
[392397343,1761429282808,-196.0,0.00015472,2]
[392397344,1761429282857,-196.0,0.00015503,2]
[392397345,1761429282910,-196.0,0.00015533,2]
[392397346,1761429282970,-196.0,0.00015563,2]
[392397347,1761429283023,-196.0,0.00015593,2]
[392397348,1761429283074,-196.0,0.00015623,2]
[392397349,1761429283134,-196.0,0.00015654,2]
[392397350,1761429283187,-196.0,0.00015684,2]
[392397351,1761429283246,-478.11338093,0.0001569,2]
[392397352,1761429283525,-1203.78323814,0.0001569,2]
[392397353,1761429291306,-300.0,0.000157,2]
[392397362,1761429429177,-500.0,0.000158,2]
[392397363,1761429434226,9000.01,0.0001559,2]
[392397364,1761429434280,10000.01,0.0001559,2]
[392397365,1761429434334,10000.01,0.0001559,2]
[392397366,1761429434388,10000.01,0.0001559,2]
[392397367,1761429434449,10000.01,0.0001559,2]
[392397368,1761429461967,-2825.385718,0.00015185,2]
[392397369,1761429476999,-1200.0,0.00015589,2]
[392397370,1761429478919,-196.01911154,0.0001559,2]
[392397371,1761429480466,-182.77241854,0.0001559,2]
[392397372,1761429482099,-289.82743061,0.0001559,2]
[392397373,1761429482295,300.0,0.00015589,2]
[392397374,1761429484311,-224.55477525,0.0001559,2]
[392397375,1761429485784,-263.8793124,0.0001559,2]
[392397377,1761429487391,-242.4797702,0.0001559,2]
[392397379,1761429489447,-164.77441272,0.0001559,2]
[392397382,1761429492351,-700.0,0.0001559,2]
[392397383,1761429492536,-10000.01,0.0001559,2]
[392397384,1761429492735,-10000.01,0.0001559,2]
[392397385,1761429492920,-10000.01,0.0001559,2]
[392397386,1761429493120,-10000.01,0.0001559,2]
[392397387,1761429493280,-191.66162883,0.0001559,2]
[392397388,1761429493369,-10000.01,0.0001559,2]
[392397389,1761429493535,-10000.01,0.0001559,2]
[392397390,1761429493797,-10000.01,0.0001559,2]
[392397391,1761429494001,-10000.01,0.0001559,2]
[392397392,1761429494474,-10000.01,0.0001559,2]
[392397393,1761429495904,-300.0,0.0001559,2]
[392397394,1761429504678,-10000.01,0.0001559,2]
[392397395,1761429524010,-196.0,0.0001511,2]
[392397396,1761429526348,-196.0,0.0001514,2]
[392397397,1761429526373,-46.32943406,0.0001517,2]
[392397398,1761429528006,-149.67056594,0.0001517,2]
[392397399,1761429528030,-50.35360365,0.00015201,2]
[392397400,1761429530035,-145.64639635,0.00015201,2]
[392397401,1761429530057,-50.35360365,0.00015231,2]
[392397402,1761429533308,-145.64639635,0.00015231,2]
[392397403,1761429533330,-23.82129962,0.00015261,2]
[392397404,1761429558660,2767.35239759,0.00015261,2]
[392397407,1761429571926,-172.17870038,0.00015261,2]
[392397408,1761429580408,1985.29226122,0.00015291,2]
[392397409,1761429592628,162.30017079,0.00015191,2]
[392397411,1761429611945,999.0,0.00014499,2]
[392397412,1761429674602,300.0,0.000145,2]
[392397413,1761429714774,5000.0,0.00015291,2]
[392397414,1761429722918,4700.01,0.00015291,2]
[392397415,1761429722975,299.99,0.00015291,2]
[392397416,1761429738998,-500.0,0.000153,2]
[392397417,1761429739061,-237.52554351,0.000153,2]
[392397418,1761429739250,5000.0,0.00015291,2]
[392397419,1761429746914,3524.95891298,0.000153,2]
[392397420,1761429746970,1475.04108702,0.000153,2]
[392397421,1761429749401,-217.37243874,0.00015489,2]
[392397422,1761429751979,-168.0,0.00015319,2]
[392397423,1761429752005,-82.62756126,0.00015489,2]
[392397424,1761429752028,-31.36171292,0.0001549,2]
[392397425,1761429757224,-168.0,0.00015481,2]
[392397426,1761429757282,-4789.59144359,0.0001549,2]
[392397427,1761429761190,84.82711282,0.00015064,2]
[392397428,1761429761248,83.17288718,0.00015064,2]
[392397429,1761429762625,5000.0,0.0001549,2]
[392397430,1761429763408,152.829773,0.00018666,7]
[392397431,1761429770325,4916.83711282,0.0001549,2]
[392397432,1761429770376,83.16288718,0.0001549,2]
[392397433,1761429772255,-168.0,0.00015498,2]
[392397434,1761429772313,-168.0,0.00015529,2]
[392397435,1761429776697,168.0,0.00015246,2]
[392397436,1761429778489,250.0,0.00015494,2]
[392397437,1761429782444,168.0,0.00015242,2]
[392397438,1761429785892,5000.0,0.00015529,2]
[392397439,1761429787305,168.0,0.0001552,2]
[392397440,1761429787420,-1200.0,0.00015579,2]
[392397441,1761429793703,4422.63435765,0.00015579,2]
[392397443,1761429797969,2420.0,0.00015344,2]
[392397445,1761429802656,-161.9,0.0001558,3]
[392397446,1761429802708,-485.71,0.0001558,3]
[392397447,1761429802942,2420.0,0.00015164,2]
[392397448,1761429809401,5000.0,0.0001558,2]
[392397449,1761429812883,153.13448,0.0001907,7]
[392397450,1761429813222,153.13448,0.00019064,7]
[392397451,1761429817777,-1200.0,0.00015586,2]
[392397452,1761429817832,-300.0,0.00015586,2]
[392397453,1761429820669,403.0,0.00015372,2]
[392397454,1761429827093,403.0,0.00015575,2]
[392397455,1761429831296,403.0,0.00015538,2]
[392397456,1761429831587,5000.0,0.00015586,2]
[392397457,1761429833056,-500.0,0.00015587,2]
[392397458,1761429833117,-401.93170238,0.00015587,2]
[392397459,1761429833179,-401.07763611,0.00015587,2]
[392397460,1761429833232,-500.0,0.00015587,2]
[392397461,1761429833289,-500.0,0.00015587,2]
[392397462,1761429833341,-389.99479004,0.00015587,2]
[392397463,1761429833393,-500.0,0.00015587,2]
[392397464,1761429833445,-500.0,0.00015587,2]
[392397465,1761429833512,-500.0,0.00015587,2]
[392397466,1761429833571,-500.0,0.00015587,2]
[392397467,1761429833625,-114.00174294,0.00015587,2]
[392397468,1761429834166,-385.99825706,0.00015587,2]
[392397469,1761429834217,-324.82387567,0.00015587,2]
[392397470,1761429834274,-500.0,0.00015587,2]
[392397471,1761429834334,-500.0,0.00015587,2]
[392397472,1761429834394,-500.0,0.00015587,2]
[392397473,1761429834444,-302.10476119,0.00015587,2]
[392397474,1761429834498,-500.0,0.00015587,2]
[392397475,1761429834560,-500.0,0.00015587,2]
[392397476,1761429834613,-200.0,0.00015587,2]
[392397477,1761429834666,-500.0,0.00015587,2]
[392397478,1761429834719,-500.0,0.00015587,2]
[392397479,1761429834771,-74.15621216,0.00015587,2]
[392397480,1761429835011,-425.84378784,0.00015587,2]
[392397481,1761429835071,-500.0,0.00015587,2]
[392397482,1761429835129,-500.0,0.00015587,2]
[392397483,1761429835183,-500.0,0.00015587,2]
[392397484,1761429835241,-500.0,0.00015587,2]
[392397485,1761429835301,-500.0,0.00015587,2]
[392397486,1761429835360,-500.0,0.00015587,2]
[392397487,1761429835420,-500.0,0.00015587,2]
[392397488,1761429835473,-500.0,0.00015587,2]
[392397489,1761429835529,-500.0,0.00015587,2]
[392397490,1761429835751,-500.0,0.00015587,2]
[392397491,1761429835803,-500.0,0.00015587,2]
[392397492,1761429835862,-415.0,0.00015587,2]
[392397493,1761429835920,-500.0,0.00015587,2]
[392397494,1761429835981,-500.0,0.00015587,2]
[392397495,1761429836045,-500.0,0.00015587,2]
[392397496,1761429836292,-500.0,0.00015587,2]
[392397497,1761429836348,-500.0,0.00015587,2]
[392397498,1761429836403,-348.46190316,0.00015587,2]
[392397499,1761429836461,-500.0,0.00015587,2]
[392397500,1761429836595,-500.0,0.00015587,2]
[392397501,1761429836651,-500.0,0.00015587,2]
[392397502,1761429836705,-500.0,0.00015587,2]
[392397503,1761429836760,-500.0,0.00015587,2]
[392397504,1761429836813,-500.0,0.00015587,2]
[392397505,1761429836866,-500.0,0.00015587,2]
[392397506,1761429836921,-500.0,0.00015587,2]
[392397507,1761429836976,-500.0,0.00015587,2]
[392397508,1761429837030,-500.0,0.00015587,2]
[392397509,1761429837265,-500.0,0.00015587,2]
[392397510,1761429837338,-500.0,0.00015587,2]
[392397511,1761429837392,-500.0,0.00015587,2]
[392397512,1761429837445,-500.0,0.00015587,2]
[392397513,1761429837496,-500.0,0.00015587,2]
[392397514,1761429837551,-500.0,0.00015587,2]
[392397515,1761429837605,-500.0,0.00015587,2]
[392397516,1761429837663,-500.0,0.00015587,2]
[392397517,1761429837720,-500.0,0.00015587,2]
[392397518,1761429837771,-500.0,0.00015587,2]
[392397519,1761429837827,-500.0,0.00015587,2]
[392397520,1761429838008,-500.0,0.00015587,2]
[392397521,1761429838066,-500.0,0.00015587,2]
[392397522,1761429838133,-500.0,0.00015587,2]
[392397523,1761429838194,-500.0,0.00015587,2]
[392397524,1761429838251,-500.0,0.00015587,2]
[392397525,1761429838304,-500.0,0.00015587,2]
[392397526,1761429838357,-500.0,0.00015587,2]
[392397527,1761429838416,-283.80886562,0.00015587,2]
[392397528,1761429838473,-500.0,0.00015587,2]
[392397529,1761429838530,-500.0,0.00015587,2]
[392397530,1761429838877,-500.0,0.00015587,2]
[392397531,1761429838932,-500.0,0.00015587,2]
[392397532,1761429838990,-500.0,0.00015587,2]
[392397533,1761429839045,-500.0,0.00015587,2]
[392397534,1761429839102,-500.0,0.00015587,2]
[392397535,1761429839159,-518.57810006,0.00015587,2]
[392397536,1761429839212,-500.0,0.00015587,2]
[392397537,1761429839264,-500.0,0.00015587,2]
[392397538,1761429839311,-253.67941857,0.00015587,2]
[392397539,1761429839360,-500.0,0.00015587,2]
[392397540,1761429839606,403.0,0.00015464,2]
[392397541,1761429839666,-500.0,0.00015587,2]
[392397542,1761429839720,-500.0,0.00015587,2]
[392397543,1761429839775,-500.0,0.00015587,2]
[392397544,1761429839831,-500.0,0.00015587,2]
[392397545,1761429839898,-500.0,0.00015587,2]
[392397546,1761429839957,-500.0,0.00015587,2]
[392397547,1761429840016,-500.0,0.00015587,2]
[392397548,1761429840079,-500.0,0.00015587,2]
[392397549,1761429840141,-500.0,0.00015587,2]
[392397550,1761429840207,-500.0,0.00015587,2]
[392397551,1761429840512,-500.0,0.00015587,2]
[392397552,1761429840567,-500.0,0.00015587,2]
[392397553,1761429840628,-429.03508278,0.00015587,2]
[392397554,1761429840684,-500.0,0.00015587,2]
[392397555,1761429840740,-500.0,0.00015587,2]
[392397556,1761429840794,-500.0,0.00015587,2]
[392397557,1761429840855,-500.0,0.00015587,2]
[392397558,1761429840930,-500.0,0.00015587,2]
[392397559,1761429841153,-500.0,0.00015587,2]
[392397560,1761429841214,-500.0,0.00015587,2]
[392397561,1761429846409,-500.0,0.00015587,2]
[392397562,1761429846468,-500.0,0.00015587,2]
[392397563,1761429846525,-500.0,0.00015587,2]
[392397564,1761429846584,-500.0,0.00015587,2]
[392397565,1761429846642,-500.0,0.00015587,2]
[392397566,1761429846700,-500.0,0.00015587,2]
[392397567,1761429846757,-500.0,0.00015587,2]
[392397568,1761429846815,-500.0,0.00015587,2]
[392397569,1761429846872,-500.0,0.00015587,2]
[392397570,1761429846931,-500.0,0.00015587,2]
[392397571,1761429847317,-500.0,0.00015587,2]
[392397572,1761429847372,-500.0,0.00015587,2]
[392397573,1761429847426,-500.0,0.00015587,2]
[392397574,1761429847485,-500.0,0.00015587,2]
[392397575,1761429847540,-500.0,0.00015587,2]
[392397576,1761429847595,-500.0,0.00015587,2]
[392397577,1761429847648,-500.0,0.00015587,2]
[392397578,1761429847706,-500.0,0.00015587,2]
[392397579,1761429847904,-500.0,0.00015587,2]
[392397580,1761429847973,-500.0,0.00015587,2]
[392397581,1761429848322,-500.0,0.00015587,2]
[392397582,1761429848381,-201.84599941,0.00015587,2]
[392397583,1761429848450,-500.0,0.00015587,2]
[392397584,1761429848509,-500.0,0.00015587,2]
[392397585,1761429848574,-500.0,0.00015587,2]
[392397586,1761429848635,-500.0,0.00015587,2]
[392397587,1761429848697,-500.0,0.00015587,2]
[392397588,1761429848757,-500.0,0.00015587,2]
[392397589,1761429848817,-500.0,0.00015587,2]
[392397590,1761429848877,-500.0,0.00015587,2]
[392397591,1761429848938,-96.31800118,0.00015587,2]
[392397592,1761429849142,-403.68199882,0.00015587,2]
[392397593,1761429849208,-500.0,0.00015587,2]
[392397594,1761429849271,-500.0,0.00015587,2]
[392397595,1761429849327,-176.40535843,0.00015587,2]
[392397596,1761429849385,-500.0,0.00015587,2]
[392397597,1761429849449,-500.0,0.00015587,2]
[392397598,1761429849508,-500.0,0.00015587,2]
[392397599,1761429849568,-500.0,0.00015587,2]
[392397600,1761429849626,-500.0,0.00015587,2]
[392397601,1761429849684,-500.0,0.00015587,2]
[392397602,1761429849746,-339.8352855,0.00015587,2]
[392397603,1761429850048,-160.1647145,0.00015587,2]
[392397604,1761429850112,-500.0,0.00015587,2]
[392397605,1761429850175,-500.0,0.00015587,2]
[392397606,1761429850238,-500.0,0.00015587,2]
[392397607,1761429850297,-500.0,0.00015587,2]
[392397608,1761429850358,-500.0,0.00015587,2]
[392397609,1761429850417,-500.0,0.00015587,2]
[392397610,1761429850475,-600.0,0.00015587,2]
[392397611,1761429850532,-500.0,0.00015587,2]
[392397612,1761429850593,-500.0,0.00015587,2]
[392397613,1761429851468,300.0,0.00015586,2]
[392397614,1761429856591,179.680571,0.00015587,2]
[392397615,1761429856640,4820.319429,0.00015587,2]
[392397616,1761429868986,2642.02575708,0.00015587,2]
[392397617,1761429871765,500.0,0.00015587,2]
[392397618,1761429871834,500.0,0.00015587,2]
[392397619,1761429871901,500.0,0.00015587,2]
[392397620,1761429871963,500.0,0.00015587,2]
[392397621,1761429872026,554.94315554,0.00015587,2]
[392397622,1761429875836,-300.0,0.00015588,2]
[392397623,1761429875891,-300.0,0.00015588,2]
[392397624,1761429875946,-300.0,0.00015588,2]
[392397625,1761429876004,-300.0,0.00015588,2]
[392397626,1761429876749,5000.0,0.00015587,2]
[392397627,1761429884456,210.5257768,0.00015587,2]
[392397628,1761429888430,1088.77177556,0.0001549,2]
[392397629,1761429890772,378.05580278,0.00015588,2]
[392397630,1761429891009,-500.0,0.00015589,2]
[392397631,1761429891074,-500.0,0.00015589,2]
[392397632,1761429891137,-500.0,0.00015589,2]
[392397633,1761429891197,-546.88,0.00015589,2]
[392397634,1761429899074,5000.0,0.00015589,2]
[392397635,1761429901198,300.0,0.00015588,2]
[392397636,1761429901858,300.0,0.00015588,2]
[392397637,1761429901941,300.0,0.00015588,2]
[392397638,1761429902007,6.25,0.00015588,2]
[392397639,1761429902059,293.75,0.00015588,2]
[392397640,1761429903595,300.0,0.00015588,2]
[392397641,1761429903980,1200.0,0.00015588,2]
[392397642,1761429909180,-396.30723534,0.00015589,2]
[392397643,1761429909249,-500.0,0.00015589,2]
[392397644,1761429909312,-348.95710644,0.00015589,2]
[392397645,1761429909370,-500.0,0.00015589,2]
[392397646,1761429909431,-500.0,0.00015589,2]
[392397647,1761429909492,-500.0,0.00015589,2]
[392397648,1761429909573,-500.0,0.00015589,2]
[392397649,1761429909633,-500.0,0.00015589,2]
[392397650,1761429909694,-500.0,0.00015589,2]
[392397651,1761429909762,-500.0,0.00015589,2]
[392397652,1761429909829,-9.48131644,0.00015589,2]
[392397653,1761429910152,-490.51868356,0.00015589,2]
[392397654,1761429910212,-500.0,0.00015589,2]
[392397655,1761429910271,-500.0,0.00015589,2]
[392397656,1761429910329,-500.0,0.00015589,2]
[392397657,1761429910396,-500.0,0.00015589,2]
[392397658,1761429910456,-500.0,0.00015589,2]
[392397659,1761429910515,-500.0,0.00015589,2]
[392397660,1761429910578,-554.14921504,0.00015589,2]
[392397661,1761429910638,-500.0,0.00015589,2]
[392397662,1761429910700,-410.6742028,0.00015589,2]
[392397663,1761429911164,-89.3257972,0.00015589,2]
[392397664,1761429911229,-500.0,0.00015589,2]
[392397665,1761429911311,-500.0,0.00015589,2]
[392397666,1761429911372,-198.20098507,0.00015589,2]
[392397667,1761429911436,-500.0,0.00015589,2]
[392397668,1761429911495,-500.0,0.00015589,2]
[392397669,1761429911563,-500.0,0.00015589,2]
[392397670,1761429911626,-500.0,0.00015589,2]
[392397671,1761429911686,-500.0,0.00015589,2]
[392397672,1761429911752,-500.0,0.00015589,2]
[392397673,1761429911815,-500.0,0.00015589,2]
[392397674,1761429912401,-500.0,0.00015589,2]
[392397675,1761429912472,-500.0,0.00015589,2]
[392397676,1761429912537,-500.0,0.00015589,2]
[392397677,1761429912598,-383.24401414,0.00015589,2]
[392397678,1761429912658,-500.0,0.00015589,2]
[392397679,1761429912722,-500.0,0.00015589,2]
[392397680,1761429912784,-500.0,0.00015589,2]
[392397681,1761429912848,-500.0,0.00015589,2]
[392397682,1761429912913,-500.0,0.00015589,2]
[392397683,1761429912976,-500.0,0.00015589,2]
[392397684,1761429913117,-500.0,0.00015589,2]
[392397685,1761429913186,-500.0,0.00015589,2]
[392397686,1761429913253,-500.0,0.00015589,2]